[Event "RUS-chT Women Rapid 2019"]
[Site "Sochi"]
[Date "2019.10.19"]
[Round "8.8"]
[White "Gaer, Margarita"]
[Black "Vasilevich, Tatjana"]
[Result "0-1"]
[ECO "A46"]
[WhiteElo "1606"]
[BlackElo "2360"]
[Annotator "NA"]
[PlyCount "106"]
[EventDate "2019.10.18"]
[EventType "swiss"]
[EventCountry "RUS"]
[SourceTitle "playchess.com"]
[Source "ChessBase"]
[SourceQuality "1"]
[TimeControl "900+10"]

1. d4 {[%emt 0:00:00]} Nf6 {[%emt 0:00:00]} 2. Nf3 {[%emt 0:00:00]} e6 {[%emt 0:00:00]} 3. Bf4 {[%emt 0:00:00]} d5 {[%emt 0:00:00]} 4. e3 {[%emt 0:00:00]} Bd6 {[%emt 0:00:00]} 5. Bd3 {[%emt 0:00:03]} O-O {[%emt 0:00:08]} 6. Ne5 {[%emt 0:00:05]} c5 {[%emt 0:00:15]} 7. c3 {[%emt 0:00:02]} Nc6 {[%emt 0:00:10]} 8. Qc2 {[%emt 0:00:46]} Qc7 {[%emt 0:00:18]} 9. Nxc6 {[%emt 0:00:43]} Bxf4 {[%emt 0:01:24]} 10. exf4 {[%emt 0:00:18]} Qxc6 {[%emt 0:00:10]} 11. Nd2 {[%emt 0:00:46]} cxd4 {[%emt 0:01:38]} 12. cxd4 {[%emt 0:00:06]} Qxc2 {[%emt 0:00:16]} 13. Bxc2 {[%emt 0:00:02]} Bd7 {[%emt 0:00:07]} 14. O-O {[%emt 0:00:58]} Bb5 {[%emt 0:00:12]} 15. Rfe1 {[%emt 0:00:37]} Rac8 {[%emt 0:00:28]} 16. Rac1 {[%emt 0:00:11]} g6 {[%emt 0:02:18]} 17. Bb1 {[%emt 0:00:49]} Nd7 {[%emt 0:01:31]} 18. Nf3 {[%emt 0:01:26]} Nb6 {[%emt 0:00:13]} 19. Ne5 {[%emt 0:00:24]} Na4 {[%emt 0:00:38]} 20. Bd3 {[%emt 0:02:12]} Bxd3 {[%emt 0:02:28]} 21. Nxd3 {[%emt 0:00:03]} Rc4 {[%emt 0:00:43]} 22. Rxc4 {[%emt 0:01:53]} dxc4 {[%emt 0:00:01]} 23. Nc5 {[%emt 0:02:36]} Nxb2 {[%emt 0:03:37]} 24. Nxb7 {[%emt 0:00:57]} Nd3 {[%emt 0:00:14]} 25. Rd1 {[%emt 0:00:33]} Nxf4 {[%emt 0:00:15]} 26. g3 {[%emt 0:00:45]} Nd5 {[%emt 0:00:07]} 27. Rc1 {[%emt 0:00:57]} c3 {[%emt 0:00:20]} 28. Nc5 {[%emt 0:00:21]} Rb8 {[%emt 0:00:16]} 29. Na4 {[%emt 0:00:52]} Rc8 {[%emt 0:00:34]} 30. Nc5 {[%emt 0:00:04]} e5 {[%emt 0:00:41]} 31. Nb3 {[%emt 0:00:34]} exd4 {[%emt 0:00:31]} 32. Nxd4 {[%emt 0:00:02]} Rc4 {[%emt 0:00:16]} 33. Nb3 {[%emt 0:00:41]} Ra4 {[%emt 0:00:21]} 34. Rc2 {[%emt 0:00:12]} Kf8 {[%emt 0:00:03]} 35. Kf1 {[%emt 0:00:08]} Rc4 {[%emt 0:00:13]} 36. Ke2 {[%emt 0:00:14]} Nb4 {[%emt 0:00:06]} 37. Rc1 {[%emt 0:00:09]} Nxa2 {[%emt 0:00:14]} 38. Ra1 {[%emt 0:00:15]} Nb4 {[%emt 0:00:06]} 39. Rxa7 {[%emt 0:00:10]} Re4+ {[%emt 0:00:11]} 40. Kf3 {[%emt 0:00:09]} Re1 {[%emt 0:00:08]} 41. Rc7 {[%emt 0:00:10]} Nd5 {[%emt 0:00:18]} 42. Rc5 {[%emt 0:00:07]} Rb1 {[%emt 0:00:10]} 43. Rxd5 {[%emt 0:00:06]} Rxb3 {[%emt 0:00:11]} 44. Rc5 {[%emt 0:00:11]} c2+ {[%emt 0:00:11]} 45. Ke2 {[%emt 0:00:02]} Rb2 {[%emt 0:00:02]} 46. Kd2 c1=Q+ {[%emt 0:00:08]} 47. Kxc1 {[%emt 0:00:06]} Rxf2 {[%emt 0:00:01]} 48. h4 {[%emt 0:00:16]} Rf3 {[%emt 0:00:11]} 49. g4 {[%emt 0:00:20]} Rf4 {[%emt 0:00:06]} 50. h5 {[%emt 0:00:13]} Rxg4 {[%emt 0:00:05]} 51. hxg6 {[%emt 0:00:07]} hxg6 {[%emt 0:00:03]} 52. Kd2 {[%emt 0:00:08]} Re4 {[%emt 0:00:01]} 53. Kd3 {[%emt 0:00:04]} Re6 {[%emt 0:00:02]} 0-1

[Event "RUS-chT Women Rapid 2019"]
[Site "Sochi"]
[Date "2019.10.19"]
[Round "8.9"]
[White "Ambartsumova, Karina"]
[Black "Gunina, Valentina"]
[Result "1-0"]
[ECO "A28"]
[WhiteElo "2341"]
[BlackElo "2509"]
[Annotator "ChessBase"]
[PlyCount "117"]
[EventDate "2019.10.18"]
[EventType "swiss"]
[EventCountry "RUS"]
[SourceTitle "playchess.com"]
[Source "ChessBase"]
[SourceQuality "1"]
[TimeControl "900+10"]

1. c4 {[%emt 0:00:00]} e5 {[%emt 0:00:40]} 2. Nc3 {[%emt 0:00:04]} Nf6 {[%emt 0:00:02]} 3. Nf3 {[%emt 0:00:04]} Nc6 {[%emt 0:00:02]} 4. a3 {[%emt 0:00:13]} e4 {[%emt 0:02:16]} 5. Ng5 {[%emt 0:01:01]} Qe7 {[%emt 0:00:03]} 6. d3 {[%emt 0:03:05]} exd3 {[%emt 0:00:19]} 7. Qxd3 {[%emt 0:00:01]} Ne5 {[%emt 0:00:03]} 8. Qc2 {[%emt 0:00:36]} Nxc4 {[%emt 0:02:28]} 9. e4 {[%emt 0:01:10]} Nd6 {[%emt 0:00:31]} 10. Bd3 {[%emt 0:00:53]} h6 {[%emt 0:01:25]} 11. Nf3 {[%emt 0:00:31]} Ndxe4 {[%emt 0:00:06]} 12. O-O {[%emt 0:00:32]} d5 {[%emt 0:00:26]} 13. Nxd5 {[%emt 0:01:09]} Nxd5 {[%emt 0:00:01]} 14. Bxe4 {[%emt 0:00:02]} Be6 {[%emt 0:00:57]} 15. Bxd5 {[%emt 0:03:11]} Bxd5 {[%emt 0:00:01]} 16. Re1 {[%emt 0:00:01]} Be6 {[%emt 0:00:01]} 17. Bf4 {[%emt 0:00:01]} Qc5 {[%emt 0:03:13]} 18. Rxe6+ {[%emt 0:00:29]} fxe6 {[%emt 0:00:01]} 19. Qg6+ {[%emt 0:00:02]} Kd8 {[%emt 0:01:54]} 20. Rd1+ {[%emt 0:04:11]} Bd6 {[%emt 0:00:16]} 21. Bxd6 {[%emt 0:00:01]} cxd6 {[%emt 0:00:01]} 22. Qxe6 {[%emt 0:00:02]} Rc8 {[%emt 0:00:12]} 23. b4 {[%emt 0:00:16]} Qc2 {[%emt 0:02:32]} 24. Qxd6+ {[%emt 0:00:03]} Ke8 {[%emt 0:00:01]} 25. Ne5 {[%emt 0:01:07]} Qf5 {[%emt 0:01:24]} 26. Ng6 {[%emt 0:00:02]} Kf7 {[%emt 0:00:10]} 27. Nxh8+ {[%emt 0:00:18]} Rxh8 {[%emt 0:00:01]} 28. Qd7+ {[%emt 0:00:21]} Qxd7 {[%emt 0:00:11]} 29. Rxd7+ {[%emt 0:00:01]} Kf6 {[%emt 0:00:03]} 30. Rxb7 {[%emt 0:00:01]} Ra8 {[%emt 0:00:07]} 31. a4 {[%emt 0:00:07]} a5 {[%emt 0:00:13]} 32. h4 {[%emt 0:00:18]} axb4 33. Rxb4 {[%emt 0:00:01]} Rc8 {[%emt 0:00:09]} 34. g3 {[%emt 0:00:19]} Rc1+ {[%emt 0:00:02]} 35. Kg2 {[%emt 0:00:01]} h5 {[%emt 0:00:15]} 36. Rb6+ {[%emt 0:00:13]} Kf5 {[%emt 0:00:13]} 37. Rb5+ {[%emt 0:00:03]} Kg6 {[%emt 0:00:04]} 38. Rg5+ {[%emt 0:00:01]} Kh6 {[%emt 0:00:01]} 39. Kf3 {[%emt 0:00:20]} Rc3+ {[%emt 0:00:03]} 40. Ke2 {[%emt 0:00:04]} Rc2+ {[%emt 0:00:11]} 41. Ke3 {[%emt 0:00:04]} Rc3+ {[%emt 0:00:03]} 42. Kd2 {[%emt 0:00:03]} Ra3 {[%emt 0:00:03]} 43. a5 {[%emt 0:00:10]} Ra2+ {[%emt 0:00:15]} 44. Ke3 {[%emt 0:00:05]} Ra3+ {[%emt 0:00:22]} 45. Ke4 {[%emt 0:00:07]} Ra2 {[%emt 0:00:26]} 46. f4 {[%emt 0:00:10]} Rd2 {[%emt 0:00:32]} 47. Rd5 {[%emt 0:00:16]} Ra2 {[%emt 0:00:01]} 48. Rd6+ {[%emt 0:00:15]} Kh7 {[%emt 0:00:14]} 49. a6 {[%emt 0:00:01]} Ra3 {[%emt 0:00:02]} 50. Kd5 {[%emt 0:00:17]} Rxg3 {[%emt 0:00:03]} 51. Kc6 {[%emt 0:00:12]} Rc3+ {[%emt 0:00:31]} 52. Kb7 {[%emt 0:00:02]} Re3 {[%emt 0:00:10]} 53. a7 {[%emt 0:00:09]} Re7+ {[%emt 0:00:02]} 54. Ka6 {[%emt 0:00:15]} Re8 {[%emt 0:00:03]} 55. Rb6 {[%emt 0:00:01]} Rf8 {[%emt 0:00:01]} 56. Rb8 {[%emt 0:00:12]} Rf6+ {[%emt 0:00:00]} 57. Kb5 {[%emt 0:00:05]} Rf5+ {[%emt 0:00:02]} 58. Kc6 {[%emt 0:00:08]} Rf6+ {[%emt 0:00:02]} 59. Kd5 {[%emt 0:00:01]} 1-0

[Event "RUS-chT Women Rapid 2019"]
[Site "Sochi"]
[Date "2019.10.19"]
[Round "8.10"]
[White "Bivol, Alina"]
[Black "Shafigullina, Zarina"]
[Result "1-0"]
[ECO "A20"]
[WhiteElo "2371"]
[BlackElo "2295"]
[Annotator "NA"]
[PlyCount "91"]
[EventDate "2019.10.18"]
[EventType "swiss"]
[EventCountry "RUS"]
[SourceTitle "playchess.com"]
[Source "ChessBase"]
[SourceQuality "1"]
[TimeControl "900+10"]

1. c4 {[%emt 0:00:56]} e5 {[%emt 0:00:00]} 2. g3 {[%emt 0:00:01]} c6 {[%emt 0:00:03]} 3. Nf3 {[%emt 0:00:06]} e4 {[%emt 0:00:06]} 4. Nd4 {[%emt 0:00:01]} d5 {[%emt 0:00:44]} 5. cxd5 {[%emt 0:00:01]} cxd5 {[%emt 0:00:01]} 6. d3 {[%emt 0:00:02]} Bb4+ {[%emt 0:01:08]} 7. Nc3 {[%emt 0:00:23]} Bxc3+ {[%emt 0:00:23]} 8. bxc3 {[%emt 0:00:01]} Ne7 {[%emt 0:01:05]} 9. dxe4 {[%emt 0:00:11]} dxe4 {[%emt 0:00:03]} 10. Bg2 {[%emt 0:00:01]} f5 {[%emt 0:00:11]} 11. Qb3 {[%emt 0:00:44]} Qd5 {[%emt 0:00:29]} 12. Ba3 {[%emt 0:00:03]} Qxb3 {[%emt 0:04:17]} 13. axb3 {[%emt 0:00:02]} a6 {[%emt 0:00:01]} 14. f3 {[%emt 0:01:00]} exf3 {[%emt 0:00:08]} 15. Bxf3 {[%emt 0:00:08]} Nbc6 {[%emt 0:00:05]} 16. O-O {[%emt 0:00:29]} Bd7 {[%emt 0:01:17]} 17. e4 {[%emt 0:00:35]} O-O-O {[%emt 0:06:21]} 18. Nxf5 {[%emt 0:00:45]} Nxf5 {[%emt 0:00:07]} 19. exf5 {[%emt 0:00:01]} Rde8 {[%emt 0:00:02]} 20. Rae1 {[%emt 0:01:10]} Rxe1 {[%emt 0:00:05]} 21. Rxe1 {[%emt 0:00:01]} Bxf5 {[%emt 0:00:01]} 22. Bc5 {[%emt 0:02:04]} Bd7 {[%emt 0:00:08]} 23. b4 {[%emt 0:00:13]} Re8 {[%emt 0:00:31]} 24. Rxe8+ {[%emt 0:01:57]} Bxe8 {[%emt 0:00:01]} 25. Bd5 {[%emt 0:00:00]} g6 {[%emt 0:01:34]} 26. Kf2 {[%emt 0:00:07]} Ne5 {[%emt 0:00:02]} 27. Bd4 {[%emt 0:00:26]} Nc6 {[%emt 0:00:01]} 28. Bg7 {[%emt 0:00:17]} Kd7 {[%emt 0:00:02]} 29. Ke3 {[%emt 0:00:19]} Kd6 {[%emt 0:00:14]} 30. Bg8 {[%emt 0:00:03]} Ne7 {[%emt 0:00:32]} 31. Bf8 {[%emt 0:00:02]} h5 {[%emt 0:00:03]} 32. Kf4 {[%emt 0:00:33]} Kd7 {[%emt 0:00:02]} 33. Bb3 {[%emt 0:00:10]} Nf5 {[%emt 0:00:24]} 34. Bc5 {[%emt 0:00:30]} Kc7 {[%emt 0:00:11]} 35. h3 {[%emt 0:00:42]} b6 {[%emt 0:00:05]} 36. Bf2 {[%emt 0:00:02]} a5 {[%emt 0:00:12]} 37. Ke5 {[%emt 0:01:05]} a4 {[%emt 0:00:13]} 38. Ba2 {[%emt 0:00:01]} Nd6 {[%emt 0:00:12]} 39. c4 {[%emt 0:00:09]} Nf7+ {[%emt 0:00:15]} 40. Kf6 {[%emt 0:00:55]} Nd6 {[%emt 0:00:03]} 41. Ke7 {[%emt 0:00:45]} Bd7 {[%emt 0:00:16]} 42. Bxb6+ {[%emt 0:00:59]} Kxb6 {[%emt 0:00:01]} 43. Kxd7 {[%emt 0:00:05]} Ne4 {[%emt 0:00:13]} 44. c5+ {[%emt 0:00:16]} Kb5 {[%emt 0:00:01]} 45. c6 {[%emt 0:00:32]} Nf6+ {[%emt 0:00:01]} 46. Ke7 {[%emt 0:00:15]} 1-0

[Event "RUS-chT Women Rapid 2019"]
[Site "Sochi"]
[Date "2019.10.19"]
[Round "8.11"]
[White "Yakimova, Mariya"]
[Black "Maltsevskaya, Aleksandra"]
[Result "1-0"]
[ECO "A58"]
[WhiteElo "2276"]
[BlackElo "2333"]
[Annotator "NA"]
[PlyCount "77"]
[EventDate "2019.10.18"]
[EventType "swiss"]
[EventCountry "RUS"]
[SourceTitle "playchess.com"]
[Source "ChessBase"]
[SourceQuality "1"]
[TimeControl "900+10"]

1. d4 {[%emt 0:00:00]} Nf6 {[%emt 0:00:00]} 2. c4 {[%emt 0:00:00]} c5 {[%emt 0:00:03]} 3. d5 {[%emt 0:00:00]} b5 {[%emt 0:00:02]} 4. cxb5 {[%emt 0:00:00]} a6 {[%emt 0:00:02]} 5. bxa6 {[%emt 0:00:00]} e6 {[%emt 0:00:02]} 6. Nc3 {[%emt 0:00:57]} exd5 {[%emt 0:00:04]} 7. Nxd5 {[%emt 0:00:33]} Be7 {[%emt 0:00:02]} 8. Nf3 {[%emt 0:00:11]} O-O {[%emt 0:00:06]} 9. e3 {[%emt 0:00:51]} Rxa6 {[%emt 0:00:07]} 10. Bc4 {[%emt 0:02:14]} Bb7 {[%emt 0:06:59]} 11. Nxe7+ {[%emt 0:00:02]} Qxe7 {[%emt 0:00:03]} 12. O-O {[%emt 0:00:02]} Rb6 {[%emt 0:00:13]} 13. b3 {[%emt 0:02:51]} Ne4 {[%emt 0:03:00]} 14. Bb2 {[%emt 0:00:26]} Rg6 {[%emt 0:00:03]} 15. Bd5 {[%emt 0:05:11]} Rd6 {[%emt 0:03:43]} 16. Bxb7 {[%emt 0:00:01]} Rxd1 {[%emt 0:00:02]} 17. Rfxd1 {[%emt 0:00:02]} Nc6 {[%emt 0:00:32]} 18. Bxc6 {[%emt 0:00:02]} dxc6 {[%emt 0:00:01]} 19. Ne5 {[%emt 0:00:54]} Qe6 {[%emt 0:00:02]} 20. Nc4 {[%emt 0:00:39]} f5 {[%emt 0:01:01]} 21. Be5 {[%emt 0:00:46]} h5 {[%emt 0:00:16]} 22. a4 {[%emt 0:00:26]} h4 {[%emt 0:00:51]} 23. h3 {[%emt 0:00:48]} g5 {[%emt 0:01:17]} 24. f3 {[%emt 0:00:01]} Nf6 {[%emt 0:00:13]} 25. Rd6 {[%emt 0:00:05]} Qe7 {[%emt 0:00:09]} 26. Rxc6 {[%emt 0:00:17]} g4 {[%emt 0:00:06]} 27. a5 {[%emt 0:00:50]} gxf3 {[%emt 0:00:11]} 28. gxf3 {[%emt 0:00:01]} Qb7 {[%emt 0:00:00]} 29. Rxf6 {[%emt 0:00:45]} Rxf6 {[%emt 0:00:14]} 30. Bxf6 {[%emt 0:00:01]} f4 {[%emt 0:00:05]} 31. a6 {[%emt 0:00:49]} Qxf3 {[%emt 0:00:02]} 32. a7 {[%emt 0:00:11]} Qg3+ {[%emt 0:00:09]} 33. Kf1 {[%emt 0:00:01]} Qxh3+ {[%emt 0:00:31]} 34. Ke2 {[%emt 0:00:19]} Qg2+ {[%emt 0:00:02]} 35. Kd1 {[%emt 0:00:14]} Qg1+ {[%emt 0:00:22]} 36. Kd2 {[%emt 0:00:14]} fxe3+ {[%emt 0:00:11]} 37. Nxe3 {[%emt 0:00:03]} Qf2+ {[%emt 0:00:01]} 38. Kd3 {[%emt 0:00:04]} c4+ {[%emt 0:00:03]} 39. bxc4 {[%emt 0:00:01]} 1-0

[Event "RUS-chT Women Rapid 2019"]
[Site "Sochi"]
[Date "2019.10.19"]
[Round "8.12"]
[White "Obolentseva, Alexandra"]
[Black "Markelova, Lubov"]
[Result "1-0"]
[ECO "D43"]
[WhiteElo "2282"]
[BlackElo "2198"]
[Annotator "NA"]
[PlyCount "81"]
[EventDate "2019.10.18"]
[EventType "swiss"]
[EventCountry "RUS"]
[SourceTitle "playchess.com"]
[Source "ChessBase"]
[SourceQuality "1"]
[TimeControl "900+10"]

1. d4 {[%emt 0:00:00]} d5 {[%emt 0:00:00]} 2. c4 {[%emt 0:00:00]} c6 {[%emt 0:00:00]} 3. Nf3 {[%emt 0:00:00]} Nf6 {[%emt 0:00:00]} 4. Nc3 {[%emt 0:00:00]} e6 {[%emt 0:00:00]} 5. cxd5 {[%emt 0:00:03]} exd5 {[%emt 0:00:00]} 6. Bg5 {[%emt 0:00:03]} Be7 {[%emt 0:00:23]} 7. Qc2 {[%emt 0:00:08]} g6 {[%emt 0:00:44]} 8. e3 {[%emt 0:00:04]} Bf5 {[%emt 0:00:04]} 9. Bd3 {[%emt 0:00:03]} Bxd3 {[%emt 0:00:06]} 10. Qxd3 {[%emt 0:00:02]} O-O {[%emt 0:00:28]} 11. O-O {[%emt 0:00:04]} Nbd7 {[%emt 0:00:18]} 12. h3 {[%emt 0:00:24]} Re8 {[%emt 0:00:04]} 13. Bf4 {[%emt 0:00:11]} Nf8 {[%emt 0:01:27]} 14. Ne5 {[%emt 0:00:11]} N6d7 {[%emt 0:00:48]} 15. Rae1 {[%emt 0:01:59]} Nxe5 {[%emt 0:01:29]} 16. Bxe5 {[%emt 0:00:04]} Nd7 {[%emt 0:00:49]} 17. Bh2 {[%emt 0:00:05]} Nf6 {[%emt 0:00:10]} 18. Bf4 {[%emt 0:01:15]} Nh5 {[%emt 0:01:32]} 19. Be5 {[%emt 0:00:27]} Bf6 {[%emt 0:00:26]} 20. Bh2 {[%emt 0:00:22]} Bg7 {[%emt 0:00:11]} 21. b4 {[%emt 0:00:07]} Nf6 {[%emt 0:01:05]} 22. b5 {[%emt 0:00:08]} Qa5 {[%emt 0:01:00]} 23. Rb1 {[%emt 0:00:55]} Rac8 {[%emt 0:00:32]} 24. Rb3 {[%emt 0:00:47]} c5 {[%emt 0:02:51]} 25. dxc5 {[%emt 0:00:43]} Rxc5 {[%emt 0:00:01]} 26. Bd6 {[%emt 0:00:29]} Rcc8 {[%emt 0:01:26]} 27. Bb4 {[%emt 0:01:07]} Qd8 {[%emt 0:00:33]} 28. Rd1 {[%emt 0:00:28]} d4 {[%emt 0:01:54]} 29. Qxd4 {[%emt 0:00:40]} Qxd4 {[%emt 0:00:17]} 30. exd4 {[%emt 0:00:02]} Ne4 {[%emt 0:00:41]} 31. Nd5 {[%emt 0:00:10]} Rc2 {[%emt 0:00:26]} 32. Re3 {[%emt 0:00:53]} Bh6 {[%emt 0:00:15]} 33. Rxe4 {[%emt 0:00:03]} Rxe4 {[%emt 0:00:05]} 34. Nf6+ {[%emt 0:00:02]} Kg7 {[%emt 0:00:04]} 35. Nxe4 {[%emt 0:00:02]} Rxa2 {[%emt 0:00:04]} 36. d5 {[%emt 0:00:06]} f5 {[%emt 0:00:10]} 37. Bc3+ {[%emt 0:00:16]} Kf7 {[%emt 0:00:04]} 38. Nd6+ {[%emt 0:00:03]} Ke7 {[%emt 0:00:04]} 39. Nxb7 {[%emt 0:00:02]} Rc2 {[%emt 0:00:12]} 40. d6+ {[%emt 0:00:03]} Kd7 {[%emt 0:00:02]} 41. Nc5+ {[%emt 0:00:03]} 1-0

[Event "RUS-chT Women Rapid 2019"]
[Site "Sochi"]
[Date "2019.10.19"]
[Round "9.1"]
[White "Badelka, Olga"]
[Black "Voit, Daria"]
[Result "1/2-1/2"]
[ECO "E20"]
[WhiteElo "2300"]
[BlackElo "2336"]
[Annotator "NA"]
[PlyCount "67"]
[EventDate "2019.10.18"]
[EventType "swiss"]
[EventCountry "RUS"]
[SourceTitle "playchess.com"]
[Source "ChessBase"]
[SourceQuality "1"]
[TimeControl "900+10"]

1. d4 {[%emt 0:00:00]} Nf6 {[%emt 0:00:00]} 2. c4 {[%emt 0:00:00]} e6 {[%emt 0:00:00]} 3. Nc3 {[%emt 0:00:00]} Bb4 {[%emt 0:00:00]} 4. Bd2 {[%emt 0:00:00]} d5 {[%emt 0:00:13]} 5. e3 {[%emt 0:00:05]} O-O {[%emt 0:00:04]} 6. Nf3 {[%emt 0:00:07]} c5 {[%emt 0:00:01]} 7. cxd5 {[%emt 0:00:20]} cxd4 {[%emt 0:00:39]} 8. Nxd4 {[%emt 0:00:02]} Nxd5 {[%emt 0:00:26]} 9. Rc1 {[%emt 0:00:49]} Bxc3 {[%emt 0:01:01]} 10. Bxc3 {[%emt 0:00:03]} Bd7 {[%emt 0:00:06]} 11. Be2 {[%emt 0:01:59]} Nc6 {[%emt 0:00:50]} 12. Bf3 {[%emt 0:01:21]} Nxc3 {[%emt 0:00:27]} 13. Rxc3 {[%emt 0:00:04]} Ne5 {[%emt 0:05:15]} 14. Be4 {[%emt 0:01:05]} Qb6 {[%emt 0:01:03]} 15. O-O {[%emt 0:05:25]} Qxb2 {[%emt 0:01:29]} 16. Rc7 {[%emt 0:00:10]} f5 {[%emt 0:00:48]} 17. Rxb7 {[%emt 0:01:16]} Qxa2 {[%emt 0:00:10]} 18. Nxf5 {[%emt 0:00:29]} Rxf5 {[%emt 0:00:39]} 19. Bxf5 {[%emt 0:01:36]} exf5 {[%emt 0:00:03]} 20. Rxd7 {[%emt 0:02:42]} Nxd7 {[%emt 0:00:02]} 21. Qxd7 {[%emt 0:00:01]} a5 {[%emt 0:01:25]} 22. Qxf5 {[%emt 0:00:07]} a4 {[%emt 0:00:03]} 23. Qe4 {[%emt 0:00:01]} Rf8 {[%emt 0:00:02]} 24. Qb1 {[%emt 0:00:27]} Qd2 {[%emt 0:01:59]} 25. Qa1 {[%emt 0:00:03]} Qc2 {[%emt 0:00:11]} 26. h3 {[%emt 0:00:21]} h6 {[%emt 0:00:52]} 27. Qa3 {[%emt 0:00:33]} Rd8 {[%emt 0:00:44]} 28. Qa1 {[%emt 0:00:19]} Rf8 29. Qd1 {[%emt 0:00:01]} Qa2 {[%emt 0:00:35]} 30. Qb1 {[%emt 0:00:19]} Qd2 {[%emt 0:00:12]} 31. Qd1 {[%emt 0:00:01]} Rxf2 {[%emt 0:00:01]} 32. Qxd2 {[%emt 0:00:10]} Rxd2 {[%emt 0:00:10]} 33. Ra1 {[%emt 0:00:00]} Rd3 34. Rxa4 {[%emt 0:00:08]} 1/2-1/2

[Event "RUS-chT Women Rapid 2019"]
[Site "Sochi"]
[Date "2019.10.19"]
[Round "9.2"]
[White "Tomilova, Elena"]
[Black "Sukhareva, Evgeniya"]
[Result "1-0"]
[ECO "A20"]
[WhiteElo "2345"]
[BlackElo "2219"]
[Annotator "NA"]
[PlyCount "67"]
[EventDate "2019.10.18"]
[EventType "swiss"]
[EventCountry "RUS"]
[SourceTitle "playchess.com"]
[Source "ChessBase"]
[SourceQuality "1"]
[TimeControl "900+10"]

1. c4 {[%emt 0:00:00]} e5 {[%emt 0:00:00]} 2. g3 {[%emt 0:00:00]} Nf6 {[%emt 0:00:00]} 3. Bg2 {[%emt 0:00:00]} c6 {[%emt 0:00:08]} 4. Nf3 {[%emt 0:00:03]} Qc7 {[%emt 0:00:10]} 5. O-O {[%emt 0:00:46]} d6 {[%emt 0:00:16]} 6. Nc3 {[%emt 0:00:24]} g6 {[%emt 0:00:11]} 7. d3 {[%emt 0:00:10]} Bg7 {[%emt 0:00:04]} 8. Rb1 {[%emt 0:00:02]} a5 {[%emt 0:00:17]} 9. a3 {[%emt 0:00:10]} O-O {[%emt 0:00:20]} 10. b4 {[%emt 0:00:10]} axb4 {[%emt 0:00:05]} 11. axb4 {[%emt 0:00:01]} d5 {[%emt 0:00:35]} 12. cxd5 {[%emt 0:04:01]} cxd5 {[%emt 0:00:18]} 13. Qb3 {[%emt 0:00:09]} Be6 {[%emt 0:01:02]} 14. Ng5 {[%emt 0:00:21]} Qd7 {[%emt 0:01:01]} 15. Nxe6 {[%emt 0:00:28]} fxe6 {[%emt 0:00:02]} 16. b5 {[%emt 0:00:19]} Qe7 {[%emt 0:00:31]} 17. Na4 {[%emt 0:00:51]} Qc7 {[%emt 0:00:23]} 18. Ba3 {[%emt 0:01:02]} Re8 {[%emt 0:00:15]} 19. Bb4 {[%emt 0:00:52]} Nbd7 {[%emt 0:00:43]} 20. Rfc1 {[%emt 0:00:26]} Qb8 {[%emt 0:00:47]} 21. Bh3 {[%emt 0:00:41]} e4 {[%emt 0:02:27]} 22. d4 {[%emt 0:00:38]} e3 {[%emt 0:00:49]} 23. f3 {[%emt 0:00:46]} Nh5 {[%emt 0:00:28]} 24. Nc5 {[%emt 0:02:48]} Nxc5 {[%emt 0:03:15]} 25. dxc5 {[%emt 0:00:02]} Nxg3 {[%emt 0:00:11]} 26. Qd3 {[%emt 0:01:04]} Qf4 {[%emt 0:01:56]} 27. Be1 {[%emt 0:00:09]} Nh5 {[%emt 0:00:08]} 28. Rb4 {[%emt 0:00:29]} Qh6 {[%emt 0:01:57]} 29. c6 {[%emt 0:01:05]} Be5 {[%emt 0:00:24]} 30. cxb7 {[%emt 0:00:22]} Rab8 {[%emt 0:00:05]} 31. Rc8 {[%emt 0:00:10]} Nf4 {[%emt 0:00:18]} 32. Rxf4 {[%emt 0:00:03]} Bxf4 {[%emt 0:00:12]} 33. Bxe6+ {[%emt 0:00:06]} Kh8 {[%emt 0:00:58]} 34. Bc3+ {[%emt 0:00:10]} 1-0

[Event "RUS-chT Women Rapid 2019"]
[Site "Sochi"]
[Date "2019.10.19"]
[Round "9.3"]
[White "Chan, Naruna"]
[Black "Gritsayeva, Oksana"]
[Result "1/2-1/2"]
[ECO "B07"]
[WhiteElo "1890"]
[BlackElo "2370"]
[Annotator "NA"]
[PlyCount "107"]
[EventDate "2019.10.18"]
[EventType "swiss"]
[EventCountry "RUS"]
[SourceTitle "playchess.com"]
[Source "ChessBase"]
[SourceQuality "1"]
[TimeControl "900+10"]

1. e4 {[%emt 0:00:00]} d6 {[%emt 0:00:00]} 2. d4 {[%emt 0:00:00]} Nf6 {[%emt 0:00:00]} 3. Nc3 {[%emt 0:00:00]} e5 {[%emt 0:00:00]} 4. dxe5 {[%emt 0:00:10]} dxe5 {[%emt 0:00:00]} 5. Qxd8+ {[%emt 0:00:04]} Kxd8 {[%emt 0:00:00]} 6. Bg5 {[%emt 0:00:23]} Be6 {[%emt 0:01:03]} 7. O-O-O+ {[%emt 0:00:06]} Nbd7 {[%emt 0:00:01]} 8. Nd5 {[%emt 0:04:01]} Be7 {[%emt 0:02:23]} 9. Nxe7 {[%emt 0:00:19]} Kxe7 {[%emt 0:00:01]} 10. f3 {[%emt 0:00:15]} Rhd8 {[%emt 0:00:53]} 11. Ne2 {[%emt 0:00:41]} Nb6 {[%emt 0:02:47]} 12. Nc3 {[%emt 0:00:18]} Rxd1+ {[%emt 0:00:05]} 13. Nxd1 {[%emt 0:00:02]} h6 {[%emt 0:00:11]} 14. Bh4 {[%emt 0:00:20]} Kf8 {[%emt 0:00:53]} 15. Ne3 {[%emt 0:02:48]} Ne8 {[%emt 0:00:20]} 16. Be2 {[%emt 0:00:23]} Nd6 {[%emt 0:00:11]} 17. Rd1 {[%emt 0:00:16]} f6 {[%emt 0:00:08]} 18. b3 {[%emt 0:00:39]} Ke7 {[%emt 0:00:21]} 19. c4 {[%emt 0:00:22]} c5 {[%emt 0:01:19]} 20. Nd5+ {[%emt 0:00:32]} Nxd5 {[%emt 0:00:24]} 21. cxd5 {[%emt 0:00:30]} Bd7 {[%emt 0:00:10]} 22. Kb2 {[%emt 0:00:51]} Rc8 {[%emt 0:00:14]} 23. Rc1 {[%emt 0:00:19]} b6 {[%emt 0:01:08]} 24. Bd3 {[%emt 0:00:28]} Bb5 {[%emt 0:00:34]} 25. Bxb5 {[%emt 0:01:59]} Nxb5 {[%emt 0:00:01]} 26. Bf2 {[%emt 0:00:01]} Kd7 {[%emt 0:00:20]} 27. g3 {[%emt 0:00:06]} Nd6 {[%emt 0:00:08]} 28. Kc3 {[%emt 0:00:36]} Rf8 {[%emt 0:00:22]} 29. g4 {[%emt 0:01:09]} g6 {[%emt 0:00:46]} 30. Bg3 {[%emt 0:00:42]} Re8 {[%emt 0:01:33]} 31. Kd3 {[%emt 0:00:13]} h5 {[%emt 0:01:00]} 32. gxh5 {[%emt 0:00:31]} gxh5 {[%emt 0:00:02]} 33. Bh4 {[%emt 0:00:01]} f5 {[%emt 0:00:33]} 34. Rg1 {[%emt 0:00:05]} fxe4+ {[%emt 0:00:15]} 35. fxe4 {[%emt 0:00:01]} Rf8 {[%emt 0:00:07]} 36. Ke3 {[%emt 0:00:26]} b5 {[%emt 0:01:10]} 37. Rg7+ {[%emt 0:00:22]} Rf7 {[%emt 0:00:02]} 38. Rg5 {[%emt 0:00:22]} Rf4 {[%emt 0:00:13]} 39. Rxh5 {[%emt 0:00:01]} Rxe4+ {[%emt 0:00:03]} 40. Kf3 {[%emt 0:00:14]} Rf4+ {[%emt 0:00:05]} 41. Ke2 {[%emt 0:00:10]} Rd4 {[%emt 0:00:19]} 42. Bg3 {[%emt 0:00:21]} Rxd5 {[%emt 0:01:12]} 43. Rxe5 {[%emt 0:00:21]} Rxe5+ {[%emt 0:00:14]} 44. Bxe5 {[%emt 0:00:01]} Nf5 {[%emt 0:00:05]} 45. Kd3 {[%emt 0:00:15]} Ke6 {[%emt 0:00:02]} 46. Ke4 {[%emt 0:00:11]} a6 {[%emt 0:00:06]} 47. Bc7 {[%emt 0:00:36]} c4 {[%emt 0:00:45]} 48. bxc4 {[%emt 0:00:10]} bxc4 {[%emt 0:00:02]} 49. Bd8 {[%emt 0:00:04]} Nd6+ {[%emt 0:00:19]} 50. Kd4 {[%emt 0:00:07]} Kd7 {[%emt 0:00:02]} 51. Bg5 {[%emt 0:00:13]} Kc6 {[%emt 0:00:17]} 52. h4 {[%emt 0:00:17]} Nf5+ {[%emt 0:00:02]} 53. Kxc4 {[%emt 0:00:03]} Nxh4 {[%emt 0:00:12]} 54. Bxh4 {[%emt 0:00:01]} 1/2-1/2